fUSD/lending_fUSD_20250526
["ID","MTS","AMOUNT","RATE_DAILY","PERIOD"]
[362428079,1748285445753,-163.658584,0.0002649,7]
[362428081,1748285445762,-383.822016,0.0002649,7]
[362428083,1748285445771,-383.822016,0.0002649,7]
[362428085,1748285445781,-383.822016,0.0002649,7]
[362428087,1748285445790,-383.822016,0.0002649,7]
[362428089,1748285445800,-151.0,0.0002649,7]
[362428091,1748285445809,-151.0,0.0002649,7]
[362428093,1748285445818,-151.0,0.0002649,7]
[362428095,1748285445827,-151.0,0.0002649,7]
[362428097,1748285445837,-151.0,0.0002649,7]
[362428099,1748285445846,-151.0,0.0002649,7]
[362428101,1748285445855,-151.0,0.0002649,7]
[362428103,1748285445865,-151.0,0.0002649,7]
[362428105,1748285445873,-404.529542,0.0002649,7]
[362428107,1748285445883,-404.529542,0.0002649,7]
[362428109,1748285445892,-151.0,0.0002649,7]
[362428111,1748285445901,-404.529542,0.0002649,7]
[362428113,1748285445911,-151.0,0.0002649,7]
[362428115,1748285445920,-404.529542,0.0002649,7]
[362428117,1748285445930,-151.0,0.0002649,7]
[362428119,1748285445940,-151.0,0.0002649,7]
[362428121,1748285445949,-151.0,0.0002649,7]
[362428123,1748285445959,-189.198661,0.0002649,7]
[362428125,1748285445969,-151.0,0.0002649,7]
[362428127,1748285445980,-151.0,0.0002649,7]
[362428129,1748285445990,-151.0,0.0002649,7]
[362428131,1748285445999,-151.0,0.0002649,7]
[362428133,1748285446008,-151.0,0.0002649,7]
[362428135,1748285446018,-229.639155,0.0002649,7]
[362428137,1748285446028,-151.0,0.0002649,7]
[362428139,1748285446037,-151.0,0.0002649,7]
[362428141,1748285446046,-14806.0,0.00026493,2]
[362428143,1748285446055,-438.0,0.00026493,2]
[362428145,1748285446066,-1261.2245281,0.00026495,2]
[362428147,1748285446076,-151.0,0.00026499,7]
[362428149,1748285446085,-151.0,0.00026499,7]
[362428151,1748285446094,-154.999366,0.00026499,7]
[362428154,1748285446104,-151.0,0.00026499,7]
[362428156,1748285446114,-409.69976144,0.000265,3]
[362428158,1748285446124,-430948.591161,0.000265,3]
[362428160,1748285446133,-103760.06035575,0.000265,7]
[362428162,1748285446142,-151.0,0.000265,7]
[362428164,1748285446151,-151.0,0.000265,7]
[362428166,1748285446160,-151.0,0.000265,7]
[362428168,1748285446170,-152.522454,0.000265,7]
[362428170,1748285446180,-151.0,0.000265,7]
[362428173,1748285446189,-151.0,0.000265,7]
[362428175,1748285446199,-151.0,0.000265,7]
[362428177,1748285446208,-273.250783,0.000265,7]
[362428179,1748285446219,-273.250783,0.000265,7]
[362428180,1748285446230,-151.0,0.000265,7]
[362428182,1748285446239,-151.0,0.000265,7]
[362428184,1748285446248,-267.81969,0.000265,7]
[362428186,1748285446258,-229.24158,0.000265,7]
[362428189,1748285446268,-787.450636,0.000265,7]
[362428191,1748285446278,-787.450636,0.000265,7]
[362428192,1748285446288,-151.0,0.000265,7]
[362428195,1748285446298,-151.0,0.000265,7]
[362428197,1748285446308,-151.0,0.000265,7]
[362428198,1748285446317,-151.0,0.000265,7]
[362428200,1748285446328,-151.0,0.000265,7]
[362428202,1748285446338,-151.0,0.000265,7]
[362428205,1748285446347,-151.0,0.000265,7]
[362428207,1748285446357,-259.015892,0.000265,7]
[362428209,1748285446367,-151.0,0.000265,7]
[362428210,1748285446377,-254.708704,0.000265,7]
[362428212,1748285446386,-151.0,0.000265,7]
[362428214,1748285446395,-650.04993,0.000265,7]
[362428215,1748285446405,-650.04993,0.000265,7]
[362428216,1748285446414,-151.0,0.000265,7]
[362428217,1748285446424,-151.0,0.000265,7]
[362428218,1748285446435,-151.0,0.000265,7]
[362428219,1748285446444,-151.0,0.000265,7]
[362428220,1748285446454,-151.0,0.000265,7]
[362428221,1748285446464,-156.305884,0.000265,7]
[362428222,1748285446474,-156.305884,0.000265,7]
[362428224,1748285446484,-237.088249,0.000265,7]
[362428225,1748285446493,-151.0,0.000265,7]
[362428227,1748285446503,-151.0,0.000265,7]
[362428230,1748285446513,-151.0,0.000265,7]
[362428231,1748285446524,-151.0,0.000265,7]
[362428233,1748285446536,-151.0,0.000265,7]
[362428236,1748285446549,-153.752563,0.000265,7]
[362428238,1748285446559,-151.0,0.000265,7]
[362428239,1748285446571,-163.658584,0.000265,7]
[362428242,1748285446581,-163.658584,0.000265,7]
[362428243,1748285446591,-383.822016,0.000265,7]
[362428245,1748285446600,-383.822016,0.000265,7]
[362428247,1748285446610,-151.0,0.000265,7]
[362428250,1748285446620,-151.0,0.000265,7]
[362428252,1748285446632,-404.529542,0.000265,7]
[362428253,1748285446641,-151.0,0.000265,7]
[362428255,1748285446651,-404.529542,0.000265,7]
[362428257,1748285446661,-151.0,0.000265,7]
[362428259,1748285446670,-151.0,0.000265,7]
[362428261,1748285446680,-151.0,0.000265,7]
[362428263,1748285446689,-171.89,0.00026508,120]
[362428265,1748285446699,-165.5,0.0002653,2]
[362428267,1748285446709,-150.0,0.00026556,2]
[362428269,1748285446718,-500.0,0.00026557,2]
[362428271,1748285446728,-500.0,0.00026557,2]
[362428273,1748285446738,-666.38,0.00026577,2]
[362428275,1748285446747,-11617.12166658,0.00026606,2]
[362428277,1748285446757,-150.0,0.00026693,2]
[362428279,1748285446766,-1000.0,0.0002683,2]
[362428281,1748285446775,-150.0,0.0002683,2]
[362428283,1748285446785,-449.06,0.00026849,2]
[362428285,1748285446796,-500.0,0.00026857,2]
[362428287,1748285446806,-150.0,0.00026967,2]
[362428289,1748285446815,-553.13846096,0.00027021,2]
[362428291,1748285446824,-405.0,0.00027064,7]
[362428293,1748285446834,-150.0,0.00027104,2]
[362428295,1748285446843,-177.479366,0.00027104,7]
[362428297,1748285446852,-151.0,0.00027105,7]
[362428299,1748285446861,-151.0,0.00027105,7]
[362428301,1748285446870,-4144.919411,0.00027105,7]
[362428303,1748285446880,-4144.919411,0.00027105,7]
[362428305,1748285446889,-151.0,0.00027105,7]
[362428307,1748285446899,-151.0,0.00027105,7]
[362428309,1748285446908,-151.0,0.00027105,7]
[362428311,1748285446918,-151.0,0.00027105,7]
[362428313,1748285446927,-213.587305,0.00027105,7]
[362428315,1748285446937,-151.0,0.00027105,7]
[362428317,1748285446946,-151.0,0.00027105,7]
[362428319,1748285446955,-383.822016,0.00027105,7]
[362428321,1748285446964,-383.822016,0.00027105,7]
[362428323,1748285446973,-151.0,0.00027105,7]
[362428324,1748285446983,-151.0,0.00027105,7]
[362428326,1748285446992,-151.0,0.00027105,7]
[362428328,1748285447002,-151.0,0.00027105,7]
[362428331,1748285447011,-404.529542,0.00027105,7]
[362428333,1748285447021,-151.0,0.00027105,7]
[362428335,1748285447030,-404.529542,0.00027105,7]
[362428337,1748285447040,-151.0,0.00027105,7]
[362428338,1748285447051,-151.0,0.00027105,7]
[362428341,1748285447061,-1000.0,0.00027105,2]
[362428342,1748285447070,-406.37425418,0.00027107,16]
[362428344,1748285447079,-151.0,0.00027205,7]
[362428346,1748285447088,-151.0,0.00027205,7]
[362428348,1748285447097,-151.0,0.00027205,7]
[362428367,1748285447264,-151.0,0.00027205,7]
[362428369,1748285447274,-20608.95839752,0.00027212,2]
[362428371,1748285447283,-163.658584,0.00027227,7]
[362428374,1748285447295,-163.658584,0.00027227,7]
[362428375,1748285447304,-211.23897893,0.00027241,2]
[362428377,1748285447314,-367.63248,0.000273,7]
[362428380,1748285447323,-367.63248,0.000273,7]
[362428381,1748285447333,-4000.0,0.000273,2]
[362428383,1748285447343,-151.0,0.00027321,7]
[362428385,1748285447352,-151.0,0.00027321,7]
[362428387,1748285447361,-151.0,0.00027321,7]
[362428389,1748285447371,-156.305884,0.00027321,7]
[362428391,1748285447380,-156.305884,0.00027321,7]
[362428393,1748285447389,-1152.0,0.00027378,2]
[362428395,1748285447399,-700.0,0.00027397,120]
[362428397,1748285447408,-700.0,0.00027397,120]
[362428399,1748285447418,-700.0,0.00027397,120]
[362428402,1748285447427,-700.0,0.00027397,120]
[362428404,1748285447438,-450.66009894,0.00027397,120]
[362428406,1748285447447,-151.0,0.00027397,7]
[362428408,1748285447456,-151.0,0.00027397,7]
[362428410,1748285447466,-150.0,0.00027397,2]
[362428412,1748285447475,-386.0,0.000274,2]
[362428414,1748285447484,-600.0,0.000274,2]
[362428416,1748285447493,-11617.12166658,0.00027527,2]
[362428418,1748285447502,-151.0,0.00027527,7]
[362428420,1748285447512,-405.0,0.00027616,14]
[362428422,1748285447521,-1511.23095245,0.00027653,5]
[362428424,1748285447531,-406.37425418,0.00027762,17]
[362428425,1748285447540,-500.0,0.00027763,2]
[362428427,1748285447552,-500.0,0.00027849,2]
[362428429,1748285447561,-405.0,0.00028031,14]
[362428432,1748285447571,-151.0,0.000281,7]
[362428433,1748285447581,-5339.73,0.000281,7]
[362428436,1748285447591,-273.250783,0.000281,7]
[362428437,1748285447600,-273.250783,0.000281,7]
[362428439,1748285447610,-150.0,0.00028118,2]
[362428441,1748285447619,-1261.2245281,0.00028189,2]
[362428443,1748285447630,-449.06,0.00028218,2]
[362428445,1748285447640,-806.25,0.00028219,2]
[362428446,1748285447650,-806.25,0.00028219,2]
[362428447,1748285447659,-806.25,0.00028219,2]
[362428448,1748285447668,-806.25,0.00028219,2]
[362428449,1748285447679,-460.2,0.00028219,2]
[362428450,1748285447688,-806.25,0.00028219,2]
[362428451,1748285447698,-460.2,0.00028219,2]
[362428452,1748285447708,-500.0,0.00028239,2]
[362428453,1748285447719,-268.185211,0.00028247,7]
[362428455,1748285447729,-268.185211,0.00028247,7]
[362428457,1748285447739,-151.0,0.00028247,7]
[362428459,1748285447749,-151.0,0.00028247,7]
[362428461,1748285447758,-500.0,0.00028254,2]
[362428463,1748285447768,-11617.12166658,0.00028447,2]
[362428465,1748285447778,-151.0,0.00028651,7]
[362428467,1748285447787,-4144.919411,0.00028651,7]
[362428469,1748285447798,-4144.919411,0.00028651,7]
[362428471,1748285447807,-151.0,0.00028651,7]
[362428473,1748285447817,-151.0,0.00028651,7]
[362428475,1748285447827,-151.0,0.00028651,7]
[362428477,1748285447837,-383.822016,0.00028651,7]
[362428479,1748285447846,-383.822016,0.00028651,7]
[362428481,1748285447855,-151.0,0.00028651,7]
[362428483,1748285447865,-151.0,0.00028651,7]
[362428485,1748285447874,-151.0,0.00028651,7]
[362428487,1748285447883,-151.0,0.00028651,7]
[362428489,1748285447892,-404.529542,0.00028651,7]
[362428491,1748285447901,-211.23747,0.00028651,7]
[362428493,1748285447911,-404.529542,0.00028651,7]
[362428495,1748285447920,-151.0,0.00028651,7]
[362428497,1748285447929,-151.0,0.00028651,7]
[362428499,1748285447938,-233.59718526,0.00028652,2]
[362428501,1748285447948,-153.064898,0.0002869,7]
[362428503,1748285447959,-2000.0,0.000287,2]
[362428505,1748285447971,-620.43644988,0.00028767,30]
[362428506,1748285447980,-150.0,0.00028839,2]
[362428508,1748285447990,-666.38,0.00028841,2]
[362428510,1748285448000,-163.658584,0.0002889,7]
[362428512,1748285448009,-163.658584,0.0002889,7]
[362428514,1748285448019,-151.0,0.000289,7]
[362428516,1748285448028,-151.0,0.000289,7]
[362428518,1748285448038,-259.015892,0.000289,7]
[362428520,1748285448048,-151.0,0.000289,7]
[362428521,1748285448058,-151.0,0.000289,7]
[362428522,1748285448067,-150.0,0.00028988,2]
[362428523,1748285448077,-405.0,0.00028997,14]
[362428524,1748285448086,-154.0,0.00029,2]
[362428525,1748285448096,-154.0,0.00029,2]
[362428526,1748285448105,-406.37425418,0.00029072,20]
[362428527,1748285448114,-171.89,0.00029159,120]
[362428528,1748285448124,-1612.5,0.00029178,2]
[362428529,1748285448134,-460.2,0.00029178,2]
[362428530,1748285448144,-460.2,0.00029178,2]
[362428531,1748285448154,-460.2,0.00029178,2]
[362428532,1748285448164,-460.2,0.00029178,2]
[362428533,1748285448174,-460.2,0.00029178,2]
[362428534,1748285448184,-460.2,0.00029178,2]
[362428535,1748285448195,-460.2,0.00029178,2]
[362428536,1748285448204,-460.2,0.00029178,2]
[362428537,1748285448214,-460.2,0.00029178,2]
[362428538,1748285448223,-460.2,0.00029178,2]
[362428539,1748285448233,-460.2,0.00029178,2]
[362428541,1748285448243,-460.2,0.00029178,2]
[362428542,1748285448253,-460.2,0.00029178,2]
[362428544,1748285448263,-460.2,0.00029178,2]
[362428546,1748285448273,-267.026709,0.000293,7]
[362428548,1748285448282,-151.0,0.00029345,7]
[362428550,1748285448292,-160.129301,0.00029345,7]
[362428551,1748285448302,-151.0,0.00029345,7]
[362428552,1748285448312,-383.822016,0.00029345,7]
[362428553,1748285448322,-383.822016,0.00029345,7]
[362428554,1748285448332,-151.0,0.00029345,7]
[362428555,1748285448342,-151.0,0.00029345,7]
[362428556,1748285448352,-404.529542,0.00029345,7]
[362428557,1748285448362,-404.529542,0.00029345,7]
[362428558,1748285448372,-151.0,0.00029345,7]
[362428559,1748285448382,-151.0,0.00029345,7]
[362428560,1748285448391,-500.0,0.00029356,5]
[362428561,1748285448401,-11617.12166658,0.00029368,2]
[362428562,1748285448411,-500.0,0.0002945,5]
[362428563,1748285448421,-150.0,0.00029458,2]
[362428564,1748285448431,-151.0,0.0002949,7]
[362428565,1748285448441,-151.0,0.0002949,7]
[362428566,1748285448450,-5339.73,0.000295,7]
[362428567,1748285448460,-151.0,0.000295,7]
[362428568,1748285448470,-151.0,0.000295,7]
[362428569,1748285448479,-151.0,0.000295,7]
[362428570,1748285448490,-650.04993,0.000295,7]
[362428571,1748285448499,-650.04993,0.000295,7]
[362428572,1748285448509,-151.0,0.000295,7]
[362428573,1748285448519,-1000.0,0.00029513,2]
[362428574,1748285448528,-500.0,0.00029515,2]
[362428575,1748285448538,-500.0,0.00029516,2]
[362428576,1748285448547,-151.0,0.0002956,7]
[362428577,1748285448557,-151.0,0.0002956,7]
[362428578,1748285448567,-151.0,0.0002956,7]
[362428579,1748285448578,-150.0,0.0002956,2]
[362428580,1748285448588,-449.06,0.00029588,2]
[362428581,1748285448597,-766.0,0.000296,2]
[362428582,1748285448607,-1328.0,0.00029633,2]
[362428583,1748285448616,-938.0,0.00029633,2]
[362428584,1748285448628,-633.0,0.00029633,2]
[362428585,1748285448639,-800.0,0.00029633,2]
[362428586,1748285448649,-587.0,0.00029633,2]
[362428587,1748285448658,-376.781,0.00029633,2]
[362428588,1748285448667,-1463.0,0.00029633,2]
[362428589,1748285448677,-923.0,0.00029633,2]
[362428590,1748285448687,-555.0,0.00029633,2]
[362428591,1748285448696,-166.776,0.00029633,2]
[362428592,1748285448706,-6920.0,0.00029633,2]
[362428593,1748285448715,-4129.32,0.00029633,2]
[362428594,1748285448725,-885.255,0.00029633,2]
[362428595,1748285448735,-863.0,0.00029633,2]
[362428596,1748285448744,-500.0,0.00029713,2]
[362428597,1748285448754,-500.0,0.00029713,2]
[362428598,1748285448764,-406.37425418,0.00029728,21]
[362428599,1748285448773,-169.0,0.00029771,2]
[362428600,1748285448783,-169.0,0.00029771,2]
[362428601,1748285448792,-169.0,0.00029771,2]
[362428602,1748285448801,-169.0,0.00029771,2]
[362428603,1748285448811,-169.0,0.00029771,2]
[362428604,1748285448820,-169.0,0.00029771,2]
[362428605,1748285448830,-169.0,0.00029771,2]
[362428606,1748285448839,-169.0,0.00029771,2]
[362428607,1748285448849,-169.0,0.00029771,2]
[362428608,1748285448858,-169.0,0.00029771,2]
[362428609,1748285448868,-169.0,0.00029771,2]
[362428610,1748285448877,-169.0,0.00029771,2]
[362428611,1748285448887,-169.0,0.00029771,2]
[362428612,1748285448896,-169.0,0.00029771,2]
[362428613,1748285448906,-169.0,0.00029771,2]
[362428614,1748285448915,-169.0,0.00029771,2]
[362428615,1748285448925,-169.0,0.00029771,2]
[362428616,1748285448934,-169.0,0.00029771,2]
[362428617,1748285448944,-169.0,0.00029771,2]
[362428618,1748285448953,-169.0,0.00029771,2]
[362428619,1748285448963,-169.0,0.00029771,2]
[362428620,1748285448973,-169.0,0.00029771,2]
[362428621,1748285448982,-169.0,0.00029771,2]
[362428622,1748285448992,-169.0,0.00029771,2]
[362428623,1748285449002,-169.0,0.00029771,2]
[362428624,1748285449012,-169.0,0.00029771,2]
[362428625,1748285449021,-169.0,0.00029771,2]
[362428627,1748285449031,-169.0,0.00029771,2]
[362428629,1748285449041,-169.0,0.00029771,2]
[362428630,1748285449051,-269.0,0.00029774,2]
[362428631,1748285449060,-269.0,0.00029774,2]
[362428632,1748285449070,-269.0,0.00029774,2]
[362428633,1748285449080,-269.0,0.00029774,2]
[362428634,1748285449089,-269.0,0.00029774,2]
[362428635,1748285449099,-269.0,0.00029774,2]
[362428637,1748285449109,-269.0,0.00029774,2]
[362428638,1748285449118,-269.0,0.00029774,2]
[362428639,1748285449127,-269.0,0.00029774,2]
[362428640,1748285449137,-269.0,0.00029774,2]
[362428641,1748285449148,-269.0,0.00029774,2]
[362428642,1748285449157,-269.0,0.00029774,2]
[362428643,1748285449167,-269.0,0.00029774,2]
[362428644,1748285449176,-269.0,0.00029774,2]
[362428646,1748285449185,-153.0,0.00029782,2]
[362428647,1748285449195,-153.0,0.00029782,2]
[362428648,1748285449205,-153.0,0.00029782,2]
[362428649,1748285449214,-153.0,0.00029782,2]
[362428650,1748285449224,-153.0,0.00029782,2]
[362428651,1748285449233,-153.0,0.00029782,2]
[362428652,1748285449242,-153.0,0.00029782,2]
[362428653,1748285449252,-153.0,0.00029782,2]
[362428654,1748285449262,-153.0,0.00029782,2]
[362428655,1748285449457,-153.0,0.00029782,2]
[362428656,1748285449468,-153.0,0.00029782,2]
[362428657,1748285449478,-153.0,0.00029782,2]
[362428658,1748285449487,-153.0,0.00029782,2]
[362428659,1748285449497,-269.0,0.00029786,2]
[362428660,1748285449507,-269.0,0.00029786,2]
[362428661,1748285449516,-269.0,0.00029786,2]
[362428662,1748285449526,-269.0,0.00029786,2]
[362428663,1748285449535,-269.0,0.00029786,2]
[362428664,1748285449544,-269.0,0.00029786,2]
[362428665,1748285449553,-269.0,0.00029786,2]
[362428666,1748285449563,-269.0,0.00029786,2]
[362428667,1748285449572,-269.0,0.00029786,2]
[362428668,1748285449581,-269.0,0.00029786,2]
[362428669,1748285449590,-269.0,0.00029786,2]
[362428670,1748285449599,-269.0,0.00029786,2]
[362428671,1748285449609,-269.0,0.00029786,2]
[362428672,1748285449618,-269.0,0.00029786,2]
[362428673,1748285449629,-151.0,0.0002979,7]
[362428674,1748285449640,-151.0,0.0002979,7]
[362428675,1748285449649,-292.800052,0.0002979,7]
[362428676,1748285449659,-367.63248,0.0002979,7]
[362428677,1748285449669,-367.63248,0.0002979,7]
[362428678,1748285449678,-151.0,0.0002979,7]
[362428679,1748285449687,-151.0,0.0002979,7]
[362428680,1748285449696,-151.0,0.0002979,7]
[362428681,1748285449708,-156.305884,0.0002979,7]
[362428682,1748285449717,-156.305884,0.0002979,7]
[362428683,1748285449727,-153.0,0.00029794,2]
[362428684,1748285449737,-153.0,0.00029794,2]
[362428685,1748285449746,-153.0,0.00029794,2]
[362428686,1748285449755,-153.0,0.00029794,2]
[362428687,1748285449765,-153.0,0.00029794,2]
[362428688,1748285449774,-153.0,0.00029794,2]
[362428689,1748285449783,-153.0,0.00029794,2]
[362428690,1748285449793,-153.0,0.00029794,2]
[362428691,1748285449803,-153.0,0.00029794,2]
[362428692,1748285449812,-153.0,0.00029794,2]
[362428693,1748285449821,-153.0,0.00029794,2]
[362428694,1748285449831,-153.0,0.00029794,2]
[362428695,1748285449840,-153.0,0.00029794,2]
[362428696,1748285449849,-269.0,0.00029797,2]
[362428697,1748285449859,-269.0,0.00029797,2]
[362428698,1748285449868,-269.0,0.00029797,2]
[362428699,1748285449878,-269.0,0.00029797,2]
[362428700,1748285449887,-269.0,0.00029797,2]
[362428701,1748285449896,-269.0,0.00029797,2]
[362428702,1748285449905,-269.0,0.00029797,2]
[362428703,1748285449915,-269.0,0.00029797,2]
[362428704,1748285449924,-269.0,0.00029797,2]
[362428705,1748285449934,-269.0,0.00029797,2]
[362428706,1748285449943,-269.0,0.00029797,2]
[362428707,1748285449952,-269.0,0.00029797,2]
[362428708,1748285449961,-269.0,0.00029797,2]
[362428709,1748285449971,-269.0,0.00029797,2]
[362428710,1748285449980,-4000.0,0.000298,2]
[362428711,1748285449989,-153.0,0.00029806,2]
[362428712,1748285449999,-153.0,0.00029806,2]
[362428713,1748285450008,-153.0,0.00029806,2]
[362428714,1748285450018,-153.0,0.00029806,2]
[362428715,1748285450027,-153.0,0.00029806,2]
[362428716,1748285450037,-153.0,0.00029806,2]
[362428717,1748285450049,-153.0,0.00029806,2]
[362428718,1748285450059,-153.0,0.00029806,2]
[362428719,1748285450069,-153.0,0.00029806,2]
[362428720,1748285450080,-153.0,0.00029806,2]
[362428721,1748285450091,-153.0,0.00029806,2]
[362428722,1748285450101,-153.0,0.00029806,2]
[362428723,1748285450110,-153.0,0.00029806,2]
[362428724,1748285450119,-269.0,0.00029809,2]
[362428725,1748285450129,-269.0,0.00029809,2]
[362428726,1748285450139,-269.0,0.00029809,2]
[362428727,1748285450148,-269.0,0.00029809,2]
[362428728,1748285450158,-269.0,0.00029809,2]
[362428729,1748285450168,-269.0,0.00029809,2]
[362428730,1748285450177,-269.0,0.00029809,2]
[362428731,1748285450188,-269.0,0.00029809,2]
[362428732,1748285450198,-269.0,0.00029809,2]
[362428733,1748285450207,-269.0,0.00029809,2]
[362428734,1748285450217,-269.0,0.00029809,2]
[362428735,1748285450226,-269.0,0.00029809,2]
[362428736,1748285450236,-269.0,0.00029809,2]
[362428737,1748285450246,-269.0,0.00029809,2]
[362428738,1748285450255,-1613.0,0.00029829,2]
[362428739,1748285450264,-1261.2245281,0.00029884,2]
[362428740,1748285450275,-556.57894592,0.00029904,5]
[362428741,1748285450285,-223.872844,0.00029927,7]
[362428742,1748285450295,-151.0,0.00029927,7]
[362428743,1748285450307,-273.250783,0.00029927,7]
[362428744,1748285450317,-273.250783,0.00029927,7]
[362428745,1748285450327,-151.0,0.00029927,7]
[362428746,1748285450336,-224.1187786,0.00029999,2]
[362428747,1748285450346,-500.0,0.00029999,2]
[362428748,1748285450356,-249.7682507,0.00029999,2]
[362428749,1748285450365,-442.38472629,0.00029999,2]
[362428750,1748285450374,-418.69026508,0.00029999,2]
[362428751,1748285450387,-500.0,0.00029999,2]
[362428752,1748285450407,-593.73773973,0.00029999,2]
[362428753,1748285450423,-214.0,0.0003,2]
[362428754,1748285450445,-600.0,0.00030137,2]
[362428755,1748285450464,-228.89869,0.00030137,7]
[362428756,1748285450479,-155.490752,0.00030137,7]
[362428757,1748285450498,-151.0,0.00030137,7]
[362428758,1748285450518,-787.450636,0.00030137,7]
[362428759,1748285450538,-787.450636,0.00030137,7]
[362428761,1748285450555,-259.015892,0.00030137,7]
[362428764,1748285450573,-151.0,0.00030137,7]
[362428767,1748285450591,-162.82797,0.00030137,7]
[362428770,1748285450607,-163.658584,0.00030144,7]
[362428772,1748285450626,-163.658584,0.00030144,7]
[362428775,1748285450641,-150.0,0.00030281,2]
[362428778,1748285450657,-11617.12166658,0.00030288,2]
[362428780,1748285450672,-4000.0,0.00030368,4]
[362428783,1748285450687,-406.37425418,0.00030383,22]
[362428785,1748285450702,-500.0,0.00030391,7]
[362428786,1748285450718,-500.0,0.00030418,7]
[362428787,1748285450734,-163.390004,0.000305,7]
[362428788,1748285450749,-151.0,0.000305,7]
[362428789,1748285450764,-151.0,0.000305,7]
[362428790,1748285450781,-650.04993,0.000305,7]
[362428791,1748285450801,-650.04993,0.000305,7]
[362428792,1748285450817,-151.0,0.000305,7]
[362428793,1748285450832,-150.0,0.00030544,2]
[362428794,1748285450848,-150.0,0.00030633,2]
[362428795,1748285450865,-150.0,0.0003072,2]
[362428796,1748285450880,-150.0,0.00030834,2]
[362428797,1748285450897,-10800.0,0.000309,11]
[362428798,1748285450912,-449.06,0.00030958,2]
[362428799,1748285450928,-151.0,0.0003099,7]
[362428800,1748285450943,-151.0,0.0003099,7]
[362428801,1748285450959,-383.822016,0.0003099,7]
[362428802,1748285450975,-383.822016,0.0003099,7]
[362428803,1748285450991,-151.0,0.0003099,7]
[362428804,1748285451006,-213.509104,0.0003099,7]
[362428805,1748285451022,-151.0,0.0003099,7]
[362428806,1748285451037,-202.814808,0.0003099,7]
[362428807,1748285451054,-404.529542,0.0003099,7]
[362428808,1748285451069,-404.529542,0.0003099,7]
[362428809,1748285451085,-151.0,0.0003099,7]
[362428810,1748285451101,-164.076238,0.0003099,7]
[362428811,1748285451116,-55219.33700755,0.00031,60]
[362428812,1748285451132,-14638.37489779,0.00031,120]
[362428813,1748285451148,-157.618555,0.00031,7]
[362428814,1748285451163,-151.0,0.00031,7]
[362428815,1748285451178,-151.0,0.00031,7]
[362428816,1748285451193,-288.904444,0.00031,7]
[362428817,1748285451209,-151.0,0.00031,7]
[362428818,1748285451225,-151.0,0.00031,7]
[362428819,1748285451241,-151.0,0.00031,7]
[362428820,1748285451257,-179.971514,0.00031,7]
[362428821,1748285451272,-4144.919411,0.00031,7]
[362428822,1748285451287,-4144.919411,0.00031,7]
[362428823,1748285451303,-150.0,0.00031002,2]